[Event "German Bundesliga 2022-23"]
[Site "Germany"]
[Date "2022.10.22"]
[Round "1"]
[White "Feygin, Michael"]
[Black "Babula, Vlastimil"]
[Result "1/2-1/2"]
[ECO "B22"]
[WhiteElo "2454"]
[BlackElo "2574"]
[Annotator "TA"]
[PlyCount "65"]
[EventDate "2022.10.21"]
[EventType "team-tourn"]
[EventCountry "GER"]
[SourceTitle "playchess.com"]
[Source "ChessBase"]
[SourceQuality "1"]
[TimeControl "40/6000+30:3000+30"]

{[%evp 13,65,18,19,12,0,3,6,0,10,6,31,31,35,25,46,37,40,33,62,72,63,0,0,0,0,0,0,0,0,0,24,24,24,11,8,8,8,10,8,8,8,8,8,8,6,7,18,8,10,9,31,34,35,31]} 1. e4 {[%emt 0:00:04][%cal Be2e4,Be4e5][%mdl 32]} c5 {[%emt 0:00:07]} 2. c3 {[%emt 0:00:04]} Nf6 {[%emt 0:01:00]} 3. e5 {[%emt 0:00:04]} Nd5 {[%emt 0:00:06]} 4. Nf3 {[%emt 0:00:04]} Nc6 {[%emt 0:01:36]} 5. Bc4 {[%emt 0:00:05]} Nb6 {[%emt 0:01:43]} 6. Bb3 {[%emt 0:00:05]} d5 {[%emt 0:04:37]} 7. exd6 {[%emt 0:00:08]} Qxd6 {[%emt 0:00:49]} 8. O-O {[%emt 0:00:06] B22: Sicilian: 2 c3.} Be6 {[%emt 0:02:20]} 9. Bxe6 {[%emt 0:00:07]} Qxe6 {[%emt 0:00:11]} 10. a4 {[%emt 0:00:05] The position is equal.} Qd7 {[%emt 0:14:58]} 11. a5 {[%emt 0:00:32] [#]} Nc4 $146 {[%emt 0:02:35]} ({Predecessor:} 11... Nd5 12. a6 b6 13. d4 cxd4 14. Nxd4 e6 15. Nxc6 Qxc6 16. Qg4 h5 17. Qe2 b5 {1-0 (53) Carlsen,M (2862)-Nepomniachtchi,I (2784) chess24.com INT 2020}) 12. a6 {[%emt 0:02:11]} e6 {[%emt 0:05:07]} 13. axb7 {[%emt 0:07:28]} Qxb7 {[%emt 0:01:08]} 14. d4 {[%emt 0:00:04]} Nb6 {[%emt 0:11:16]} 15. Be3 {[%emt 0:12:39]} Be7 {[%emt 0:06:35]} 16. dxc5 {[%emt 0:26:21]} Nd5 {[%emt 0:01:39]} 17. b4 {[%emt 0:07:21]} (17. Bd4 $14) 17... a5 $1 $11 {[%emt 0:06:46]} 18. Qa4 {[%emt 0:03:35] [#] Threatens to win with b5.} Nc7 {[%emt 0:11:47][%cal Ra5b4] Inhibits b5.} 19. b5 {[%emt 0:30:43]} ({Of course not} 19. bxa5 Rxa5 20. Qxa5 Nxa5 21. Rxa5 O-O $17) 19... Qxb5 {[%emt 0:17:51]} 20. Nd4 {[%emt 0:00:08]} Qxa4 {[%emt 0:01:17]} 21. Rxa4 {[%emt 0:00:01]} Ra6 {[%emt 0:02:12]} 22. Nxc6 {[%emt 0:06:18]} Rxc6 {[%emt 0:00:04]} 23. Rxa5 {[%emt 0:00:04]} Ra6 {[%emt 0:04:36]} 24. Rxa6 {[%emt 0:05:08]} Nxa6 {[%emt 0:00:04]} 25. Nd2 {[%emt 0:00:04] And now c6 would win.} Nxc5 {[%emt 0:04:04]} 26. Ra1 {[%emt 0:00:15]} O-O {[%emt 0:00:32]} 27. Ra7 {[%emt 0:01:49]} Bd6 {[%emt 0:00:23]} 28. Kf1 {[%emt 0:05:30]} Rc8 {[%emt 0:04:50]} 29. Ke2 {[%emt 0:02:35]} Kf8 {[%emt 0:01:20]} 30. h3 {[%emt 0:00:33]} Ke8 {[%emt 0:00:55]} 31. Nc4 {[%emt 0:00:57]} Be7 {[%emt 0:01:34]} 32. Nb6 {[%emt 0:00:10]} Rc6 {[%emt 0:00:19]} 33. Ra8+ {[%emt 0:01:01] Weighted Error Value: White=0.05 (flawless) /Black=0.06 (flawless)} 1/2-1/2

[Event "German Bundesliga 2022-23"]
[Site "Germany"]
[Date "2022.10.22"]
[Round "1"]
[White "Wachinger, Nikolas"]
[Black "Saltaev, Mihail"]
[Result "1/2-1/2"]
[ECO "B11"]
[WhiteElo "2432"]
[BlackElo "2469"]
[Annotator "RC"]
[PlyCount "106"]
[EventDate "2022.10.21"]
[EventType "team-tourn"]
[EventCountry "GER"]
[SourceTitle "playchess.com"]
[Source "ChessBase"]
[SourceQuality "1"]
[TimeControl "40/6000+30:3000+30"]

1. e4 c6 2. Nf3 d5 3. Nc3 Bg4 4. h3 Bxf3 5. Qxf3 e6 6. d4 Nf6 7. Be2 dxe4 8. Qe3 Bb4 9. O-O Bxc3 10. bxc3 O-O 11. Qg3 Nbd7 12. Bh6 Ne8 13. a4 Ndf6 14. Rfb1 Qd7 15. c4 Kh8 16. Bf4 b6 17. a5 bxa5 18. Qa3 Kg8 19. c3 h6 20. Qc5 Qc8 21. Qe5 Qd8 22. Rb7 g5 23. Bh2 Ng7 24. g4 Nfe8 25. Qxe4 Nd6 26. Bxd6 Qxd6 27. c5 Qd5 28. Bd3 f5 29. Qxd5 exd5 30. gxf5 Nxf5 31. Rc7 Nh4 32. Rxc6 Rf3 33. Be2 Rxc3 34. Rxh6 Nf5 35. Rg6+ Kh7 36. Rxg5 Nxd4 37. Bg4 Rxc5 38. Rd1 Nb3 39. Be6 d4 40. Rxc5 Nxc5 41. Bf5+ Kg7 42. Rxd4 Re8 43. Kf1 Kf6 44. Bc2 Ke5 45. Rd1 Rb8 46. Ra1 Rb2 47. Bd1 a4 48. Bxa4 Nd3 49. Bc6 Rxf2+ 50. Kg1 Rc2 51. Bg2 Rc1+ 52. Rxc1 Nxc1 53. Bc6 Kf4 1/2-1/2

[Event "German Bundesliga 2022-23"]
[Site "Germany"]
[Date "2022.10.22"]
[Round "1"]
[White "Zaja, Ivan"]
[Black "Naumann, Alexander"]
[Result "1/2-1/2"]
[ECO "D85"]
[WhiteElo "2417"]
[BlackElo "2513"]
[Annotator "TA"]
[PlyCount "47"]
[EventDate "2022.10.21"]
[EventType "team-tourn"]
[EventCountry "GER"]
[SourceTitle "playchess.com"]
[Source "ChessBase"]
[SourceQuality "1"]
[TimeControl "40/6000+30:3000+30"]

{[%evp 14,47,32,17,20,10,27,0,0,0,0,0,31,37,47,27,41,0,37,0,32,16,21,22,54,49,57,38,58,16,72,-87,-78,-83,36,52]} 1. d4 {[%emt 0:00:08]} Nf6 {[%emt 0:00:06]} 2. c4 {[%emt 0:00:22]} g6 {[%emt 0:00:07]} 3. Nc3 {[%emt 0:00:14]} d5 {[%emt 0:00:08]} 4. cxd5 {[%emt 0:00:39]} Nxd5 {[%emt 0:00:06]} 5. Bd2 {[%emt 0:01:24]} Bg7 {[%emt 0:02:31]} 6. e4 {[%emt 0:00:24]} Nxc3 {[%emt 0:00:16]} 7. Bxc3 {[%emt 0:00:08]} O-O {[%emt 0:00:49]} 8. Qd2 {[%emt 0:01:27]} e6 {[%emt 0:03:15] D85: Exchange Grünfeld: Unusual White 7th moves and lines with 7 Nf3.} 9. Nf3 {[%emt 0:08:43]} b6 {[%emt 0:00:49]} 10. Bc4 {[%emt 0:08:56]} Bb7 {[%emt 0:00:29] [#] The position is equal.} 11. Qf4 $146 {[%emt 0:07:54]} ({Predecessor:} 11. Qe3 Nd7 12. O-O Nf6 13. Bd3 Qe7 14. Rfd1 Rfd8 15. h3 Rac8 16. b4 h5 17. Ne5 {1-0 (37) Brunner,N (2257)-Marchal,M (1990) Illkirch Graffenstaden 2004}) 11... Nd7 {[%emt 0:08:28]} 12. O-O {[%emt 0:03:52]} Nf6 {[%emt 0:13:08]} 13. Rfe1 {[%emt 0:01:54]} Nh5 {[%emt 0:01:53]} 14. Qd2 {[%emt 0:12:58]} Nf6 {[%emt 0:01:13]} 15. Qf4 {[%emt 0:00:53]} Nh5 {[%emt 0:00:12]} 16. Qd2 {[%emt 0:00:08]} Nf6 {[%emt 0:00:11]} 17. Qc2 {[%emt 0:05:28]} Qe7 {[%emt 0:18:41]} 18. b4 {[%emt 0:01:55]} Rfd8 {[%emt 0:01:26]} 19. a4 {[%emt 0:02:11][%cal Ba2a4,Ba4a5][%mdl 32]} a6 {[%emt 0:15:05]} 20. Rab1 {[%emt 0:08:21]} Rac8 {[%emt 0:07:18]} 21. a5 {[%emt 0:02:53]} Nd7 {[%emt 0:05:10]} (21... Ne8 $11) 22. Qe2 $2 {[%emt 0:10:56] White is more active.} (22. Rbd1 $16 {stays on course.}) 22... b5 $17 {[%emt 0:02:27]} 23. Ba2 {[%emt 0:06:38] [#]} e5 {[%emt 0:09:25]} (23... c5 $1 $17 {[%cal Rc5d4] White must now prevent ...cxd4.} 24. Qb2 (24. bxc5 Nxc5 25. Bb4 Bxd4 $17) 24... cxd4 25. Bxd4 Bxd4 26. Nxd4 Nf6) 24. d5 {[%emt 0:02:11] Weighted Error Value: White=0.29 (precise) /Black=0.16 (very precise)} 1/2-1/2

[Event "German Bundesliga 2022-23"]
[Site "Germany"]
[Date "2022.10.22"]
[Round "1.1"]
[White "Kryvoruchko, Yuriy"]
[Black "Eljanov, Pavel"]
[Result "0-1"]
[ECO "B12"]
[WhiteElo "2658"]
[BlackElo "2697"]
[Annotator "TA"]
[PlyCount "72"]
[EventDate "2022.10.21"]
[EventType "team-tourn"]
[EventCountry "GER"]
[SourceTitle "playchess.com"]
[Source "ChessBase"]
[SourceQuality "1"]
[TimeControl "40/6000+30:3000+30"]

{[%evp 10,72,32,19,48,28,32,29,16,7,6,0,0,0,0,0,0,0,10,-22,-27,-43,-49,-43,-26,-60,-65,-46,-62,-43,-43,-52,-27,-78,-81,-267,-280,-250,-303,-420,-411,-483,-424,-393,-354,-772,-763,-739,-735,-673,-647,-939,-905,-29990,-29991,-29991,-29992,-29992,-29993,-29993,-29994,-29994,-29995,-29995,-29996]} 1. e4 {[%emt 0:00:04]} c6 {[%emt 0:00:19]} 2. d4 {[%emt 0:00:09]} d5 {[%emt 0:00:05]} 3. e5 {[%emt 0:00:04]} Bf5 {[%emt 0:00:04]} 4. Nf3 {[%emt 0:00:07]} e6 {[%emt 0:00:04]} 5. Be2 {[%emt 0:00:14]} Nd7 {[%emt 0:00:25]} 6. O-O {[%emt 0:00:36]} a5 {[%emt 0:00:19] B12: Caro-Kann: Advance Variation.} 7. a4 {[%emt 0:01:41]} f6 {[%emt 0:00:16] [#]} 8. Be3 $146 {[%emt 0:03:55]} ({Predecessor:} 8. c4 Ne7 9. exf6 Nxf6 10. Nc3 Ng6 11. Bd3 Bb4 12. Bxf5 exf5 13. cxd5 Bxc3 14. bxc3 Qxd5 {1-0 (46) Saric,I (2650)-Vogel,R (2459) Germany 2021}) 8... fxe5 {[%emt 0:09:50] White has an edge.} 9. dxe5 {[%emt 0:00:08]} Bc5 {[%emt 0:00:27]} 10. Bxc5 {[%emt 0:06:58]} Nxc5 {[%emt 0:00:02]} 11. Nd4 {[%emt 0:00:34]} Ne7 {[%emt 0:01:01]} 12. Bh5+ {[%emt 0:12:53]} g6 {[%emt 0:04:09]} 13. Be2 {[%emt 0:00:48]} Qb6 {[%emt 0:08:51]} 14. g4 {[%emt 0:17:45]} Be4 $1 {[%emt 0:00:36]} 15. Nc3 {[%emt 0:10:05]} h5 {[%emt 0:13:55]} (15... Qxb2 16. Qd2 Qb6 17. Qe3 $16) 16. f3 $1 {[%emt 0:11:06]} (16. Nxe4 dxe4 17. Qd2 O-O-O $17) 16... O-O-O {[%emt 0:08:01][%cal Oh5g4]} 17. fxe4 {[%emt 0:07:43]} dxe4 {[%emt 0:00:12]} 18. Qd2 $1 {[%emt 0:01:05]} ({But not} 18. gxh5 $2 Nf5 19. Kh1 (19. hxg6 $2 Nxd4 20. Kh1 Qxb2 $19) 19... Rxd4 $19) 18... hxg4 $1 {[%emt 0:01:17]} 19. Bxg4 {[%emt 0:04:32]} Nf5 $36 {[%emt 0:02:58][%mdl 2048] Against Qe3. Black fights for an advantage.} 20. Bxf5 {[%emt 0:03:22]} gxf5 {[%emt 0:04:44]} 21. Nce2 {[%emt 0:01:11]} (21. Rad1 $11 {remains equal.}) 21... Nd7 $1 $17 {[%emt 0:14:59][%cal Bc5d7,Bd7e5,Be5c4,Bc4d2][%mdl 32]} 22. Ra3 $2 {[%emt 0:14:28] Now White is beyond hope.} (22. Qe3 $17 {was called for.}) 22... Nxe5 $19 {[%emt 0:00:57]} 23. Rb3 {[%emt 0:02:35]} Qc5 {[%emt 0:04:59]} 24. Qc3 {[%emt 0:04:10] [#]} Nc4 $1 {[%emt 0:07:57] Strongly threatening ...e3.} 25. Kh1 {[%emt 0:02:05]} e3 {[%emt 0:02:20] aiming for ...Qd5+.} 26. Nf3 {[%emt 0:00:12] Threatens to win with Qg7.} e5 {[%emt 0:04:43] White must now prevent ...f4.} 27. Nxe5 $2 {[%emt 0:02:30]} (27. Neg1) 27... Qd5+ {[%emt 0:07:29]} 28. Nf3 {[%emt 0:00:06]} Nd2 {[%emt 0:00:12]} 29. Qg7 {[%emt 0:00:48]} c5 {[%emt 0:06:08]} ({Weaker is} 29... Nxb3 30. cxb3 Qe4 31. Qg3 $17) 30. Rd3 {[%emt 0:00:04]} Nxf3 {[%emt 0:00:59][%csl Gf3][%cal Rh8h2]} 31. Qg2 {[%emt 0:00:02]} Rxh2+ {[%emt 0:01:40] Black mates.} ({Stronger than} 31... Nd4 32. Rxe3 Qxg2+ 33. Kxg2 $17) 32. Qxh2 {[%emt 0:00:03] [#]} Nd4+ $1 {[%emt 0:00:08][%mdl 64] Discovered Attack} 33. Kg1 {[%emt 0:00:53]} Nxe2+ {[%emt 0:00:19]} 34. Qxe2 {[%emt 0:00:06]} Rg8+ {[%emt 0:00:03]} 35. Kh2 {[%emt 0:00:07]} Qe5+ {[%emt 0:00:24]} 36. Kh1 {[%emt 0:00:15]} Qe4+ {[%emt 0:00:22] Weighted Error Value: White=0.82/Black=0.05 (flawless)} 0-1

[Event "German Bundesliga 2022-23"]
[Site "Germany"]
[Date "2022.10.22"]
[Round "1.1"]
[White "Schroeder, Jan-Christian"]
[Black "Maghsoodloo, Parham"]
[Result "1-0"]
[ECO "B90"]
[WhiteElo "2544"]
[BlackElo "2721"]
[Annotator "TA"]
[PlyCount "99"]
[EventDate "2022.10.21"]
[EventType "team-tourn"]
[EventCountry "GER"]
[SourceTitle "playchess.com"]
[Source "ChessBase"]
[SourceQuality "1"]
[TimeControl "40/6000+30:3000+30"]

{[%evp 10,99,15,4,36,0,15,2,22,17,33,33,45,40,41,39,76,68,72,56,59,45,126,30,26,8,8,8,8,8,7,-10,-22,-5,-17,-52,-60,-54,-48,-66,-74,-83,-66,-69,-13,-19,-8,-54,-57,-59,0,0,0,-16,-19,-34,-12,-74,41,58,64,39,139,114,203,185,170,160,272,259,364,258,1232,1228,983,710,706,675,680,693,689,683,662,627,909,457,940,939,929,920,858,762]} 1. e4 {[%emt 0:00:03]} c5 {[%emt 0:00:10]} 2. Nf3 {[%emt 0:00:08]} d6 {[%emt 0:00:06]} 3. d4 {[%emt 0:00:07]} cxd4 {[%emt 0:00:03]} 4. Nxd4 {[%emt 0:00:06]} Nf6 {[%emt 0:00:05]} 5. Nc3 {[%emt 0:00:30]} a6 {[%emt 0:02:08]} 6. Bc4 {[%emt 0:00:44]} Bd7 {[%emt 0:04:02] B90: Sicilian Najdorf: Unusual White 6th moves, 6 Be3 Ng4 and 6 Be3 e5.} 7. f3 {[%emt 0:12:42]} Nc6 {[%emt 0:02:56]} 8. g4 {[%emt 0:13:50]} h6 {[%emt 0:01:50] The position is equal.} 9. Be3 {[%emt 0:05:42]} Na5 {[%emt 0:08:06]} 10. Be2 {[%emt 0:02:38]} e6 {[%emt 0:01:50]} 11. Qd2 {[%emt 0:03:00]} Qc7 {[%emt 0:02:41]} 12. h4 {[%emt 0:04:54]} Nc4 {[%emt 0:06:41]} 13. Bxc4 {[%emt 0:00:06]} Qxc4 {[%emt 0:00:04]} 14. O-O-O {[%emt 0:04:00]} b5 {[%emt 0:00:48][%cal Bb7b5,Bb5b4][%mdl 32]} 15. Kb1 {[%emt 0:03:02]} g6 {[%emt 0:07:06] [#]} ({Black should try} 15... b4 $14 16. Nce2 Rc8) 16. g5 $146 {[%emt 0:05:10]} (16. a3 $16) ({Predecessor:} 16. Nb3 b4 17. Ne2 a5 18. Ng3 a4 19. Nc1 Bc6 20. b3 Qb5 21. Nd3 Rb8 22. g5 Nd7 23. gxh6 Be7 24. Bg5 f6 25. Be3 Kf7 26. Qg2 Rbg8 27. Qd2 Rb8 {½-½ (27) Pavlov,M-Partos,C Sinaia 1975}) 16... hxg5 $11 {[%emt 0:01:25]} 17. Bxg5 {[%emt 0:00:26]} Nh5 {[%emt 0:03:06]} 18. Rhe1 {[%emt 0:11:33][%cal Oc3d5]} f6 $1 {[%emt 0:02:17] White must now prevent ...b4.} 19. Be3 {[%emt 0:06:41]} b4 $1 {[%emt 0:02:34]} 20. Nce2 {[%emt 0:00:05]} (20. Na4 $5 Bxa4 21. b3 $11) 20... e5 {[%emt 0:00:12]} 21. Nb3 {[%emt 0:00:04][%cal Ob3c5]} Be6 {[%emt 0:03:16]} 22. Nec1 {[%emt 0:04:54]} a5 {[%emt 0:04:59]} 23. Nd3 {[%emt 0:03:42]} Be7 {[%emt 0:02:13]} 24. Qg2 {[%emt 0:03:03]} Bf7 {[%emt 0:11:52]} 25. f4 {[%emt 0:02:55]} Rc8 {[%emt 0:00:42]} 26. Nbc1 {[%emt 0:05:07]} O-O {[%emt 0:02:56]} (26... Ng7 $15) 27. Rg1 {[%emt 0:03:13] Strongly threatening f5.} Kh7 {[%emt 0:01:49]} 28. Rdf1 {[%emt 0:00:17]} (28. b3 $11 Qc7 29. Rd2) 28... Rg8 $15 {[%emt 0:08:29]} 29. Rf2 {[%emt 0:01:05]} Be8 {[%emt 0:11:02]} (29... Rg7 $15) 30. b3 $11 {[%emt 0:01:22]} Qc6 {[%emt 0:03:19]} 31. Rd2 {[%emt 0:06:22]} Rg7 {[%emt 0:04:43]} 32. Ne2 {[%emt 0:00:33]} Qb7 {[%emt 0:00:28]} 33. Nf2 {[%emt 0:01:41]} (33. Qf3 $11 {keeps the balance.}) 33... Bc6 {[%emt 0:03:01]} (33... a4 $17) 34. Qf3 $14 {[%emt 0:03:38]} Be8 {[%emt 0:02:01]} 35. Ng3 {[%emt 0:00:44]} exf4 {[%emt 0:01:24] Black is on the road to losing.} (35... Nxg3 $14 36. Rxg3 Kh8) 36. Bxf4 $16 {[%emt 0:00:45]} Rc3 {[%emt 0:00:37]} (36... Nxg3 $16 37. Qxg3 Rc3) 37. Be3 $18 {[%emt 0:01:08] aiming for Nxh5. The board is on fire.} Nxg3 {[%emt 0:00:35]} 38. Rxg3 {[%emt 0:00:06]} Qc8 {[%emt 0:02:12] [#]} (38... a4 $16 {was worth a try.} 39. Nd1 (39. Qf4 Qc7 $16) 39... Rc8) 39. Nd3 $1 {[%emt 0:01:01]} (39. Qf4 Qe6 $16) 39... Bc6 {[%emt 0:04:12]} (39... Bf7 {was necessary.} 40. Bd4 (40. Qf4 d5 $16) 40... a4) 40. Qf4 {[%emt 0:01:40] Qh6+ is the strong threat.} g5 $2 {[%emt 0:00:55]} (40... Qb7 41. Qh6+ Kg8 42. Rxg6 Bf8) 41. hxg5 {[%emt 0:50:56] White is clearly winning.} fxg5 {[%emt 0:50:01]} 42. Bd4 {[%emt 0:00:00] Intending Rh2+ and mate.} Qe6 {[%emt 0:00:00]} 43. Qf5+ {[%emt 0:00:00]} Qxf5 {[%emt 0:00:00]} 44. exf5 {[%emt 0:00:00]} Bf8 {[%emt 0:00:00]} 45. Bxg7 {[%emt 0:00:00]} Kxg7 {[%emt 0:00:00]} 46. Rxg5+ {[%emt 0:00:00]} Kf6 {[%emt 0:00:00]} 47. Rg4 {[%emt 0:00:00] Threatens to win with Rg6+.} Bf3 {[%emt 0:00:00]} (47... Bb5 $142 48. Rd4 Bc6) 48. Rg6+ {[%emt 0:00:00]} Kxf5 {[%emt 0:00:00]} 49. Rg3 {[%emt 0:00:00]} Ke4 {[%emt 0:00:00] [#]} 50. Rxf3 $1 {[%emt 0:00:00][%mdl 512] Weighted Error Value: White=0.24 (precise) /Black=0.32} 1-0

[Event "German Bundesliga 2022-23"]
[Site "Germany"]
[Date "2022.10.23"]
[Round "1.1"]
[White "Plenca, Julijan"]
[Black "Grandelius, Nils"]
[Result "0-1"]
[ECO "B94"]
[WhiteElo "2447"]
[BlackElo "2651"]
[Annotator "ChessBase"]
[PlyCount "96"]
[EventDate "2022.10.21"]
[EventType "team-tourn"]
[EventCountry "GER"]
[SourceTitle "playchess.com"]
[Source "ChessBase"]
[SourceQuality "1"]
[TimeControl "40/6000+30:3000+30"]

1. e4 {[%emt 0:00:05]} c5 {[%emt 0:00:43]} 2. Nf3 {[%emt 0:00:32]} d6 {[%emt 0:00:13]} 3. d4 {[%emt 0:00:04]} cxd4 {[%emt 0:00:19]} 4. Nxd4 {[%emt 0:00:03]} Nf6 {[%emt 0:00:24]} 5. Nc3 {[%emt 0:00:05]} a6 {[%emt 0:00:22]} 6. Bg5 {[%emt 0:00:34]} Nbd7 {[%emt 0:01:32]} 7. Bc4 {[%emt 0:04:03]} Qb6 {[%emt 0:01:02]} 8. Bb3 {[%emt 0:06:18]} e6 {[%emt 0:01:27]} 9. Qd2 {[%emt 0:06:47]} Be7 {[%emt 0:01:02]} 10. O-O-O {[%emt 0:01:18]} Nc5 {[%emt 0:00:34]} 11. Rhe1 {[%emt 0:02:55]} Qc7 {[%emt 0:11:22]} 12. Kb1 {[%emt 0:03:57]} h6 {[%emt 0:15:00]} 13. Bh4 {[%emt 0:09:08]} O-O {[%emt 0:16:03]} 14. Nf3 {[%emt 0:07:34]} b5 {[%emt 0:06:04]} 15. a3 {[%emt 0:28:24]} Bb7 {[%emt 0:06:48]} 16. Bxf6 {[%emt 0:04:48]} Bxf6 {[%emt 0:00:14]} 17. Nd4 {[%emt 0:02:47]} d5 {[%emt 0:11:40]} 18. exd5 {[%emt 0:02:39]} Rad8 {[%emt 0:08:43]} 19. Ba2 {[%emt 0:00:46]} exd5 {[%emt 0:00:33]} 20. g3 {[%emt 0:03:19]} Ne4 {[%emt 0:02:24]} 21. Nxe4 {[%emt 0:00:41]} dxe4 {[%emt 0:00:02]} 22. c3 {[%emt 0:02:35]} Rd6 {[%emt 0:09:04]} 23. Bb3 {[%emt 0:05:46]} Qd7 {[%emt 0:06:20]} 24. Qf4 {[%emt 0:02:25]} Bg5 {[%emt 0:02:05]} 25. Qe5 {[%emt 0:00:33]} Re8 {[%emt 0:02:22]} 26. Qc5 {[%emt 0:01:17]} Rc8 {[%emt 0:01:15]} 27. Qf5 {[%emt 0:00:55]} Rd8 {[%emt 0:00:58]} 28. Qxd7 {[%emt 0:01:04]} R8xd7 {[%emt 0:00:07]} 29. Bc2 {[%emt 0:00:13]} Re7 {[%emt 0:03:05]} 30. Nf5 {[%emt 0:01:32]} Rxd1+ {[%emt 0:00:02]} 31. Rxd1 {[%emt 0:00:05]} Re5 {[%emt 0:00:25]} 32. Nd6 {[%emt 0:08:35]} Bd5 {[%emt 0:00:07]} 33. a4 {[%emt 0:02:01]} bxa4 {[%emt 0:01:39]} 34. Rd4 {[%emt 0:01:00]} e3 {[%emt 0:01:03]} 35. fxe3 {[%emt 0:00:13]} Bxe3 {[%emt 0:00:01]} 36. Rb4 {[%emt 0:00:26]} g6 {[%emt 0:01:06]} 37. Rb8+ {[%emt 0:00:31]} Kh7 {[%emt 0:00:15]} 38. c4 {[%emt 0:00:53]} Be6 {[%emt 0:01:42]} 39. Ne4 {[%emt 0:01:25]} Kg7 {[%emt 0:00:52]} 40. Nd6 {[%emt 0:00:05]} h5 {[%emt 0:00:49]} 41. h4 {[%emt 0:50:19]} Bc5 {[%emt 0:18:12]} 42. Ne8+ {[%emt 0:00:00]} Kh6 {[%emt 0:00:38]} 43. Bd3 {[%emt 0:00:00]} Re3 {[%emt 0:03:18]} 44. Kc2 {[%emt 0:00:00]} Rxg3 {[%emt 0:01:03]} 45. Nc7 {[%emt 0:00:00]} Rg2+ {[%emt 0:00:39]} 46. Kb1 {[%emt 0:00:00]} Bd6 {[%emt 0:03:22]} 47. Rb7 {[%emt 0:00:00]} Bxc7 {[%emt 0:01:14]} 48. Rxc7 {[%emt 0:00:00]} Rd2 {[%emt 0:00:07]} 0-1

[Event "German Bundesliga 2022-23"]
[Site "Germany"]
[Date "2022.10.22"]
[Round "1.2"]
[White "Santos Latasa, Jaime"]
[Black "Kraemer, Martin"]
[Result "1/2-1/2"]
[ECO "A09"]
[WhiteElo "2677"]
[BlackElo "2579"]
[Annotator "TA"]
[PlyCount "65"]
[EventDate "2022.10.21"]
[EventType "team-tourn"]
[EventCountry "GER"]
[SourceTitle "playchess.com"]
[Source "ChessBase"]
[SourceQuality "1"]
[TimeControl "40/6000+30:3000+30"]

{[%evp 11,65,4,4,7,16,4,19,9,9,9,22,9,24,0,0,0,0,0,0,0,0,0,0,-8,3,-12,0,-12,0,0,0,0,0,8,6,4,16,0,0,0,0,0,0,0,0,0,0,0,0,0,0,0,0,-3,-3,-20]} 1. Nf3 {[%emt 0:00:03]} d5 {[%emt 0:00:13]} 2. g3 {[%emt 0:00:05]} c5 {[%emt 0:00:41]} 3. Bg2 {[%emt 0:00:06]} Nf6 {[%emt 0:00:04]} 4. O-O {[%emt 0:00:06]} e6 {[%emt 0:00:03]} 5. c4 {[%emt 0:00:22]} d4 {[%emt 0:00:07]} 6. d3 {[%emt 0:00:12]} Nc6 {[%emt 0:00:05]} 7. e3 {[%emt 0:00:05] A09: Réti Opening: 1 Nf3 d5 2 c4.} Bd6 {[%emt 0:01:06]} 8. exd4 {[%emt 0:00:49]} cxd4 {[%emt 0:00:05]} 9. Bg5 {[%emt 0:00:12]} h6 {[%emt 0:00:06]} 10. Bxf6 {[%emt 0:00:10]} Qxf6 {[%emt 0:01:46]} 11. Nbd2 {[%emt 0:00:11][%cal Bb1d2,Bd2b3,Bb3c5][%mdl 32]} Qe7 {[%emt 0:00:16]} 12. Re1 {[%emt 0:00:24]} O-O {[%emt 0:00:59] The position is equal.} 13. Nb3 {[%emt 0:00:14]} Qf6 {[%emt 0:02:25]} 14. a3 {[%emt 0:00:22]} a5 {[%emt 0:00:54]} 15. Nfd2 {[%emt 0:02:05][%cal Bf3d2,Bd2b3,Bb3c5][%mdl 32]} Bc7 {[%emt 0:01:54]} 16. Nc5 $1 {[%emt 0:00:23][%mdl 4] is now more promising than 16.Rc1.} Qe7 {[%emt 0:06:30]} 17. Na4 {[%emt 0:00:54]} Bd7 {[%emt 0:05:42]} 18. Nb3 {[%emt 0:08:46]} Ne5 {[%emt 0:19:31]} 19. Nbc5 {[%emt 0:05:16]} Bc6 {[%emt 0:01:28]} 20. Bxc6 {[%emt 0:19:48]} bxc6 {[%emt 0:02:29] [#]} 21. Qh5 $146 {[%emt 0:05:56]} ({Predecessor:} 21. b4 axb4 22. axb4 Rfb8 23. f4 Ng6 24. Qf3 Qe8 25. Rab1 Ne7 26. Qe4 Nf5 27. Rb2 {0-1 (66) Rhodes,J (2202)-Sogin,D (2361) ICCF email 2014}) 21... Nd7 {[%emt 0:15:58]} 22. Nxd7 {[%emt 0:12:04]} Qxd7 {[%emt 0:00:02]} 23. b4 {[%emt 0:01:40]} Rfb8 {[%emt 0:08:16]} 24. Reb1 {[%emt 0:00:56]} axb4 {[%emt 0:02:46]} 25. axb4 {[%emt 0:01:37]} Bd6 {[%emt 0:13:13]} 26. Kg2 {[%emt 0:10:52][%cal Oa4b6] [#] aiming for Nb6!} Ra7 {[%emt 0:05:26]} (26... Rxb4 $2 27. Rxb4 c5 28. Qf3 $18) (26... Bxb4 $2 {[#]} 27. Nb6 $1 {[%mdl 512]} Rxb6 28. Rxa8+ Kh7 29. Rba1 $18) 27. Qg4 {[%emt 0:08:33]} Rxb4 {[%emt 0:12:54]} 28. Rxb4 {[%emt 0:00:46]} Bxb4 {[%emt 0:00:01]} 29. Nb6 {[%emt 0:00:52]} Qb7 {[%emt 0:00:05]} 30. Rxa7 {[%emt 0:00:11]} Qxa7 {[%emt 0:00:01]} 31. Qxd4 {[%emt 0:00:25]} Qe7 {[%emt 0:00:50] Against Qd8+} 32. Na4 {[%emt 0:05:57]} c5 {[%emt 0:03:47]} 33. Qe4 {[%emt 0:00:17] A balanced but interesting game.  Weighted Error Value: White=0.04 (flawless) /Black=0.03 (flawless)} 1/2-1/2